fUST/lending_fUST_20241227
["ID","MTS","AMOUNT","RATE_DAILY","PERIOD"]
[346789154,1735288255215,-850.91,0.00010205,2]
[346789155,1735288255225,-500.0,0.00010205,2]
[346789156,1735288255235,-500.0,0.00010205,2]
[346789157,1735288255244,-1146.75,0.00010205,2]
[346789158,1735288255254,-500.0,0.00010205,2]
[346789159,1735288255267,-580.25,0.00010205,2]
[346789160,1735288255281,-1062.95,0.00010205,2]
[346789161,1735288255290,-500.0,0.00010205,2]
[346789162,1735288255300,-944.19,0.00010205,2]
[346789163,1735288255311,-500.0,0.00010205,2]
[346789164,1735288255320,-500.0,0.00010205,2]
[346789165,1735288255332,-500.0,0.00010205,2]
[346789166,1735288255345,-500.0,0.00010205,2]
[346789167,1735288255356,-500.0,0.00010205,2]
[346789168,1735288255366,-515.01,0.00010205,2]
[346789169,1735288255376,-500.0,0.00010205,2]
[346789170,1735288255386,-500.0,0.00010205,2]
[346789171,1735288255396,-23744.02,0.00010205,2]
[346789172,1735288255406,-829.04,0.00010205,2]
[346789173,1735288255494,-500.0,0.00010205,2]
[346789174,1735288255505,-694.33,0.00010205,2]
[346789175,1735288255514,-1090.65,0.00010205,2]
[346789176,1735288255524,-500.0,0.00010205,2]
[346789177,1735288255534,-683.56,0.00010205,2]
[346789178,1735288255544,-500.0,0.00010205,2]
[346789179,1735288255554,-589.37,0.00010205,2]
[346789180,1735288255565,-500.0,0.00010205,2]
[346789181,1735288255575,-500.0,0.00010205,2]
[346789182,1735288255592,-500.0,0.00010206,2]
[346789183,1735288255602,-500.0,0.00010206,2]
[346789184,1735288255611,-500.0,0.00010206,2]
[346789185,1735288255621,-500.0,0.00010206,2]
[346789186,1735288255631,-500.0,0.00010206,2]
[346789187,1735288255641,-589.25,0.00010206,2]
[346789188,1735288255652,-500.0,0.00010206,2]
[346789189,1735288255662,-500.0,0.00010206,2]
[346789190,1735288255673,-629.98,0.00010206,2]
[346789191,1735288255687,-500.0,0.00010206,2]
[346789192,1735288255699,-500.0,0.00010206,2]
[346789193,1735288255710,-500.0,0.00010206,2]
[346789194,1735288255721,-500.0,0.00010206,2]
[346789195,1735288255731,-778.87296,0.00010206,2]
[346789196,1735288255741,-500.0,0.00010206,2]
[346789197,1735288255751,-778.87296,0.00010206,2]
[346789198,1735288255761,-500.0,0.00010206,2]
[346789199,1735288255771,-500.0,0.00010206,2]
[346789200,1735288255780,-500.0,0.00010206,2]
[346789201,1735288255791,-500.0,0.00010206,2]
[346789202,1735288255800,-802.73,0.00010206,2]
[346789203,1735288255810,-500.0,0.00010206,2]
[346789204,1735288255820,-500.0,0.00010206,2]
[346789205,1735288255831,-4829.44,0.00010206,2]
[346789206,1735288255841,-500.0,0.00010206,2]
[346789207,1735288255850,-500.0,0.00010206,2]
[346789208,1735288255859,-717.01,0.00010206,2]
[346789209,1735288255869,-593.64,0.00010206,2]
[346789210,1735288255879,-500.0,0.00010206,2]
[346789211,1735288255888,-1447.13,0.00010206,2]
[346789212,1735288255898,-500.0,0.00010206,2]
[346789213,1735288255906,-546.38,0.00010206,2]
[346789214,1735288255913,-504.11657298,0.00010206,2]
[346789215,1735288255920,-500.0,0.00010207,2]
[346789216,1735288255927,-500.0,0.00010207,2]
[346789217,1735288255935,-500.0,0.00010207,2]
[346789218,1735288255942,-500.0,0.00010207,2]
[346789219,1735288255951,-500.0,0.00010207,2]
[346789220,1735288255960,-474.42451569,0.00010207,2]
[346789221,1735288255973,-500.0,0.00010207,2]
[346789222,1735288255982,-500.0,0.00010207,2]
[346789223,1735288255992,-5576.4,0.00010208,2]
[346789224,1735288256001,-787.73,0.00010208,2]
[346789225,1735288256011,-500.0,0.00010208,2]
[346789226,1735288256020,-6770.48,0.0001021,2]
[346789227,1735288256030,-500.0,0.00010216,2]
[346789228,1735288256039,-504.80250384,0.00010216,2]
[346789229,1735288256049,-161.87490658,0.00010216,2]
[346789230,1735288256058,-500.57199525,0.00010216,2]
[346789231,1735288256067,-500.61264233,0.00010216,2]
[346789232,1735288256076,-672.873,0.0001022,2]
[346789233,1735288256089,-500.0,0.00010277,2]
[346789234,1735288256099,-420.0,0.00010298,2]
[346789235,1735288256108,-420.0,0.00010298,2]
[346789236,1735288256118,-308.0,0.00010321,2]
[346789237,1735288256127,-308.0,0.00010321,2]
[346789238,1735288256137,-308.0,0.00010321,2]
[346789239,1735288256146,-308.0,0.00010321,2]
[346789240,1735288256155,-308.0,0.00010321,2]
[346789241,1735288256164,-308.0,0.00010321,2]
[346789242,1735288256174,-308.0,0.00010321,2]
[346789243,1735288256183,-308.0,0.00010321,2]
[346789244,1735288256192,-308.0,0.00010321,2]
[346789245,1735288256202,-315.01,0.00010321,2]
[346789246,1735288256211,-500.0,0.00010478,2]
[346789247,1735288256220,-500.0,0.00010478,2]
[346789248,1735288256229,-6755.76,0.00010478,2]
[346789249,1735288256240,-2562.51,0.00010478,2]
[346789250,1735288256250,-500.0,0.00010478,2]
[346789251,1735288256259,-618.33,0.00010478,2]
[346789252,1735288256272,-1521.97,0.00010478,2]
[346789253,1735288256282,-1063.39,0.00010478,2]
[346789254,1735288256292,-2196.98,0.00010478,2]
[346789255,1735288256301,-692.15,0.00010478,2]
[346789256,1735288256310,-716.99,0.00010478,2]
[346789257,1735288256319,-500.0,0.00010479,2]
[346789258,1735288256330,-526.28030217,0.00010479,2]
[346789259,1735288256339,-500.0,0.00010479,2]
[346789260,1735288256349,-500.0,0.00010479,2]
[346789261,1735288256358,-500.0,0.00010479,2]
[346789262,1735288256368,-709.48,0.00010479,2]
[346789263,1735288256379,-500.0,0.00010479,2]
[346789264,1735288256392,-500.0,0.00010479,2]
[346789265,1735288256402,-548.81,0.00010479,2]
[346789266,1735288256412,-500.0,0.00010479,2]
[346789267,1735288256422,-500.0,0.00010479,2]
[346789268,1735288256431,-500.0,0.00010479,2]
[346789269,1735288256441,-500.0,0.00010479,2]
[346789270,1735288256452,-500.0,0.00010479,2]
[346789271,1735288256462,-500.0,0.00010479,2]
[346789272,1735288256472,-877.43,0.00010479,2]
[346789273,1735288256482,-1622.62,0.00010479,2]
[346789274,1735288256491,-500.0,0.00010479,2]
[346789275,1735288256501,-500.0,0.00010479,2]
[346789276,1735288256510,-500.0,0.00010479,2]
[346789277,1735288256521,-500.0,0.00010479,2]
[346789278,1735288256531,-524.49053574,0.00010479,2]
[346789279,1735288256540,-196.4803071,0.00010479,2]
[346789280,1735288256550,-500.0,0.00010479,2]
[346789281,1735288256559,-850.91,0.00010479,2]
[346789282,1735288256569,-1146.75,0.00010479,2]
[346789283,1735288256578,-500.0,0.00010479,2]
[346789284,1735288256589,-580.25,0.00010479,2]
[346789285,1735288256600,-1062.95,0.00010479,2]
[346789286,1735288256610,-500.0,0.00010479,2]
[346789287,1735288256619,-944.19,0.00010479,2]
[346789288,1735288256629,-500.0,0.00010479,2]
[346789289,1735288256639,-500.0,0.00010479,2]
[346789290,1735288256649,-500.0,0.00010479,2]
[346789291,1735288256659,-500.0,0.00010479,2]
[346789292,1735288256668,-500.0,0.00010479,2]
[346789293,1735288256678,-515.01,0.00010479,2]
[346789294,1735288256688,-500.0,0.00010479,2]
[346789295,1735288256698,-500.0,0.00010479,2]
[346789296,1735288256708,-23744.02,0.00010479,2]
[346789297,1735288256717,-829.04,0.00010479,2]
[346789298,1735288256727,-500.0,0.00010479,2]
[346789299,1735288256737,-694.33,0.00010479,2]
[346789300,1735288256747,-1090.65,0.00010479,2]
[346789301,1735288256757,-500.0,0.00010479,2]
[346789302,1735288256766,-683.56,0.00010479,2]
[346789303,1735288256776,-500.0,0.00010479,2]
[346789304,1735288256786,-589.37,0.00010479,2]
[346789305,1735288256795,-500.0,0.00010479,2]
[346789306,1735288256805,-500.0,0.00010479,2]
[346789307,1735288256814,-500.0,0.0001048,2]
[346789308,1735288256824,-500.0,0.0001048,2]
[346789309,1735288256836,-500.0,0.0001048,2]
[346789310,1735288256845,-500.0,0.0001048,2]
[346789311,1735288256855,-500.0,0.0001048,2]
[346789312,1735288256865,-589.25,0.0001048,2]
[346789313,1735288256875,-500.0,0.0001048,2]
[346789314,1735288256884,-500.0,0.0001048,2]
[346789315,1735288256894,-629.98,0.0001048,2]
[346789316,1735288256903,-500.0,0.0001048,2]
[346789317,1735288256913,-500.0,0.0001048,2]
[346789318,1735288256994,-500.0,0.0001048,2]
[346789319,1735288257005,-500.0,0.0001048,2]
[346789320,1735288257015,-778.87296,0.0001048,2]
[346789321,1735288257025,-500.0,0.0001048,2]
[346789322,1735288257035,-778.87296,0.0001048,2]
[346789323,1735288257045,-500.0,0.0001048,2]
[346789324,1735288257054,-500.0,0.0001048,2]
[346789325,1735288257064,-500.0,0.0001048,2]
[346789326,1735288257073,-500.0,0.0001048,2]
[346789327,1735288257086,-802.73,0.0001048,2]
[346789328,1735288257096,-500.0,0.0001048,2]
[346789329,1735288257105,-607.84550829,0.0001048,2]
[346789330,1735288257115,-4829.44,0.0001048,2]
[346789331,1735288257124,-500.0,0.0001048,2]
[346789332,1735288257134,-500.0,0.0001048,2]
[346789333,1735288257146,-717.01,0.0001048,2]
[346789334,1735288257158,-593.64,0.0001048,2]
[346789335,1735288257170,-500.0,0.0001048,2]
[346789336,1735288257182,-1447.13,0.0001048,2]
[346789337,1735288257191,-500.0,0.0001048,2]
[346789338,1735288257201,-546.38,0.0001048,2]
[346789339,1735288257210,-500.0,0.00010481,2]
[346789340,1735288257220,-500.0,0.00010481,2]
[346789341,1735288257229,-500.0,0.00010481,2]
[346789342,1735288257239,-500.0,0.00010481,2]
[346789343,1735288257248,-500.0,0.00010481,2]
[346789344,1735288257257,-500.0,0.00010481,2]
[346789345,1735288257269,-5576.4,0.00010482,2]
[346789346,1735288257279,-787.73,0.00010482,2]
[346789347,1735288257290,-500.0,0.00010482,2]
[346789348,1735288257299,-6770.48,0.00010484,2]
[346789349,1735288257310,-250.2,0.000105,2]
[346789350,1735288257319,-1000.0,0.00010523,2]
[346789351,1735288257329,-1000.0,0.00010541,2]
[346789352,1735288257338,-1000.0,0.00010568,2]
[346789353,1735288257349,-1000.0,0.0001058,2]
[346789354,1735288257359,-1000.0,0.0001063,2]
[346789355,1735288257368,-1000.0,0.00010646,2]
[346789356,1735288257378,-238.6690627,0.00010652,2]
[346789357,1735288257387,-1000.0,0.00010657,2]
[346789358,1735288257397,-1000.0,0.00010685,2]
[346789359,1735288257406,-1000.0,0.000107,2]
[346789360,1735288257415,-300.0,0.000107,3]
[346789361,1735288257424,-618.0,0.000107,2]
[346789362,1735288257434,-300.57903092,0.000107,4]
[346789363,1735288257443,-500.0,0.00010752,2]
[346789364,1735288257453,-500.0,0.00010752,2]
[346789365,1735288257462,-6755.76,0.00010752,2]
[346789366,1735288257471,-2562.51,0.00010752,2]
[346789367,1735288257481,-500.0,0.00010752,2]
[346789368,1735288257490,-618.33,0.00010752,2]
[346789369,1735288257500,-1521.97,0.00010752,2]
[346789370,1735288257509,-1063.39,0.00010752,2]
[346789371,1735288257519,-2196.98,0.00010752,2]
[346789372,1735288257529,-692.15,0.00010752,2]
[346789373,1735288257539,-716.99,0.00010752,2]
[346789374,1735288257548,-500.0,0.00010753,2]
[346789375,1735288257557,-500.0,0.00010753,2]
[346789376,1735288257567,-500.0,0.00010753,2]
[346789377,1735288257577,-500.0,0.00010753,2]
[346789378,1735288257588,-709.48,0.00010753,2]
[346789379,1735288257600,-500.0,0.00010753,2]
[346789380,1735288257610,-1000.0,0.00010753,2]
[346789381,1735288257619,-500.0,0.00010753,2]
[346789382,1735288257629,-548.81,0.00010753,2]
[346789383,1735288257638,-500.0,0.00010753,2]
[346789384,1735288257648,-500.0,0.00010753,2]
[346789385,1735288257658,-500.0,0.00010753,2]
[346789386,1735288257669,-500.0,0.00010753,2]
[346789387,1735288257678,-500.0,0.00010753,2]
[346789388,1735288257688,-877.43,0.00010753,2]
[346789389,1735288257697,-640.30666777,0.00010753,2]
[346789390,1735288257707,-1622.62,0.00010753,2]
[346789391,1735288257717,-500.0,0.00010753,2]
[346789392,1735288257726,-500.0,0.00010753,2]
[346789393,1735288257735,-500.0,0.00010753,2]
[346789394,1735288257744,-850.91,0.00010753,2]
[346789395,1735288257754,-500.0,0.00010753,2]
[346789396,1735288257763,-1146.75,0.00010753,2]
[346789397,1735288257773,-500.0,0.00010753,2]
[346789398,1735288257782,-580.25,0.00010753,2]
[346789399,1735288257792,-1062.95,0.00010753,2]
[346789400,1735288257801,-500.0,0.00010753,2]
[346789401,1735288257811,-944.19,0.00010753,2]
[346789402,1735288257820,-500.0,0.00010753,2]
[346789403,1735288257829,-500.0,0.00010753,2]
[346789404,1735288257840,-500.0,0.00010753,2]
[346789405,1735288257849,-500.0,0.00010753,2]
[346789406,1735288257859,-515.01,0.00010753,2]
[346789407,1735288257868,-500.0,0.00010753,2]
[346789408,1735288257877,-500.0,0.00010753,2]
[346789409,1735288257887,-23744.02,0.00010753,2]
[346789410,1735288257896,-829.04,0.00010753,2]
[346789411,1735288257906,-500.0,0.00010753,2]
[346789412,1735288257915,-694.33,0.00010753,2]
[346789413,1735288257925,-1090.65,0.00010753,2]
[346789414,1735288257935,-500.0,0.00010753,2]
[346789415,1735288257944,-683.56,0.00010753,2]
[346789416,1735288257953,-500.0,0.00010753,2]
[346789417,1735288257962,-589.37,0.00010753,2]
[346789418,1735288257971,-500.0,0.00010753,2]
[346789419,1735288257981,-500.0,0.00010753,2]
[346789420,1735288257990,-500.0,0.00010754,2]
[346789421,1735288257999,-500.0,0.00010754,2]
[346789422,1735288258009,-500.0,0.00010754,2]
[346789423,1735288258019,-500.0,0.00010754,2]
[346789424,1735288258029,-589.25,0.00010754,2]
[346789425,1735288258038,-500.0,0.00010754,2]
[346789426,1735288258047,-500.0,0.00010754,2]
[346789427,1735288258057,-629.98,0.00010754,2]
[346789428,1735288258067,-500.0,0.00010754,2]
[346789429,1735288258076,-500.0,0.00010754,2]
[346789430,1735288258087,-500.0,0.00010754,2]
[346789431,1735288258096,-500.0,0.00010754,2]
[346789432,1735288258106,-778.87296,0.00010754,2]
[346789433,1735288258116,-500.0,0.00010754,2]
[346789434,1735288258125,-778.87296,0.00010754,2]
[346789435,1735288258134,-500.0,0.00010754,2]
[346789436,1735288258144,-500.0,0.00010754,2]
[346789437,1735288258153,-500.0,0.00010754,2]
[346789438,1735288258163,-500.0,0.00010754,2]
[346789439,1735288258172,-802.73,0.00010754,2]
[346789440,1735288258182,-500.0,0.00010754,2]
[346789441,1735288258191,-4829.44,0.00010754,2]
[346789442,1735288258200,-500.0,0.00010754,2]
[346789443,1735288258210,-349.38651464,0.00010754,2]
[346789444,1735288258219,-717.01,0.00010754,2]
[346789445,1735288258228,-593.64,0.00010754,2]
[346789446,1735288258237,-500.0,0.00010754,2]
[346789447,1735288258247,-1447.13,0.00010754,2]
[346789448,1735288258256,-500.0,0.00010754,2]
[346789449,1735288258269,-546.38,0.00010754,2]
[346789450,1735288258278,-500.0,0.00010755,2]
[346789451,1735288258287,-500.0,0.00010755,2]
[346789452,1735288258297,-1000.0,0.00010755,2]
[346789453,1735288258307,-500.0,0.00010755,2]
[346789454,1735288258385,-500.0,0.00010755,2]
[346789455,1735288258395,-500.0,0.00010755,2]
[346789456,1735288258404,-500.0,0.00010755,2]
[346789457,1735288258414,-5576.4,0.00010756,2]
[346789458,1735288258423,-787.73,0.00010756,2]
[346789459,1735288258433,-500.0,0.00010756,2]
[346789460,1735288258443,-6770.48,0.00010758,2]
[346789461,1735288258452,-167.72000091,0.00010759,2]
[346789462,1735288258461,-500.14901933,0.00010764,2]
[346789463,1735288258471,-1000.0,0.00010769,2]
[346789464,1735288258481,-500.0,0.00010825,2]
[346789465,1735288258491,-3581.39979578,0.00010859,2]
[346789466,1735288258501,-1500.0,0.00010912,2]
[346789467,1735288258510,-1500.0,0.00010912,2]
[346789468,1735288258519,-778.87296,0.00010958,2]
[346789469,1735288258529,-778.87296,0.00010958,2]
[346789470,1735288258539,-13774.98,0.00010958,2]
[346789471,1735288258548,-13774.98,0.00010958,2]
[346789472,1735288258558,-13774.98,0.00010958,2]
[346789473,1735288258567,-13774.98,0.00010958,2]
[346789474,1735288258576,-13774.98,0.00010958,2]
[346789475,1735288258587,-13774.98,0.00010958,2]
[346789476,1735288258597,-151.0,0.00010959,2]
[346789477,1735288258607,-154.411968,0.00010959,2]
[346789478,1735288258617,-151.0,0.00010959,2]
[346789479,1735288258627,-151.0,0.00010959,2]
[346789480,1735288258637,-151.0,0.00010959,2]
[346789481,1735288258646,-151.0,0.00010959,2]
[346789482,1735288258656,-151.0,0.00010959,2]
[346789483,1735288258665,-151.0,0.00010959,2]
[346789484,1735288258675,-151.0,0.00010959,2]
[346789485,1735288258685,-151.0,0.00010959,2]
[346789486,1735288258694,-151.0,0.00010959,2]
[346789487,1735288258704,-151.0,0.00010959,2]
[346789488,1735288258714,-151.0,0.00010959,2]
[346789489,1735288258723,-151.0,0.00010959,2]
[346789490,1735288258733,-151.0,0.00010959,2]
[346789491,1735288258742,-254.646649,0.00010959,2]
[346789492,1735288258751,-151.0,0.00010959,2]
[346789493,1735288258761,-151.0,0.00010959,2]
[346789494,1735288258771,-205.294407,0.00010959,2]
[346789495,1735288258780,-205.294407,0.00010959,2]
[346789496,1735288258789,-205.294407,0.00010959,2]
[346789497,1735288258798,-205.294407,0.00010959,2]
[346789498,1735288258807,-205.294407,0.00010959,2]
[346789499,1735288258817,-205.294407,0.00010959,2]
[346789500,1735288258826,-151.0,0.00010959,2]
[346789501,1735288258836,-153.668839,0.00010959,2]
[346789502,1735288258846,-184.01315,0.00010959,2]
[346789503,1735288258855,-184.01315,0.00010959,2]
[346789504,1735288258864,-184.01315,0.00010959,2]
[346789505,1735288258873,-184.01315,0.00010959,2]
[346789506,1735288258882,-184.01315,0.00010959,2]
[346789507,1735288258892,-184.01315,0.00010959,2]
[346789508,1735288258901,-151.0,0.00010959,2]
[346789509,1735288258910,-151.88518,0.00010959,2]
[346789510,1735288258920,-151.0,0.00010959,2]
[346789511,1735288258929,-151.0,0.00010959,2]
[346789512,1735288258938,-151.0,0.00010959,2]
[346789513,1735288258947,-151.0,0.00010959,2]
[346789514,1735288258957,-151.0,0.00010959,2]
[346789515,1735288258966,-8949.309376,0.00010959,2]
[346789516,1735288258975,-151.0,0.00010959,2]
[346789517,1735288258986,-151.0,0.00010959,2]
[346789518,1735288258995,-151.0,0.00010959,2]
[346789519,1735288259004,-151.0,0.00010959,2]
[346789520,1735288259014,-151.0,0.00010959,2]
[346789521,1735288259023,-169.405968,0.00010959,2]
[346789522,1735288259032,-151.0,0.00010959,2]
[346789523,1735288259042,-151.0,0.00010959,2]
[346789524,1735288259052,-151.0,0.00010959,2]
[346789525,1735288259061,-163.024187,0.00010959,2]
[346789526,1735288259070,-163.024187,0.00010959,2]
[346789527,1735288259080,-163.024187,0.00010959,2]
[346789528,1735288259092,-163.024187,0.00010959,2]
[346789529,1735288259101,-163.024187,0.00010959,2]
[346789530,1735288259111,-163.024187,0.00010959,2]
[346789531,1735288259121,-151.0,0.00010959,2]
[346789532,1735288259130,-163.024187,0.00010959,2]
[346789533,1735288259139,-154.500758,0.00010959,2]
[346789534,1735288259149,-163.024187,0.00010959,2]
[346789535,1735288259158,-163.024187,0.00010959,2]
[346789536,1735288259167,-163.024187,0.00010959,2]
[346789537,1735288259176,-159.067493,0.00010959,2]
[346789538,1735288259186,-159.067493,0.00010959,2]
[346789539,1735288259195,-159.067493,0.00010959,2]
[346789540,1735288259204,-159.067493,0.00010959,2]
[346789541,1735288259213,-159.067493,0.00010959,2]
[346789542,1735288259223,-159.067493,0.00010959,2]
[346789543,1735288259232,-159.067493,0.00010959,2]
[346789544,1735288259241,-159.067493,0.00010959,2]
[346789545,1735288259251,-159.067493,0.00010959,2]
[346789546,1735288259260,-159.067493,0.00010959,2]
[346789547,1735288259274,-159.067493,0.00010959,2]
[346789548,1735288259283,-159.067493,0.00010959,2]
[346789549,1735288259293,-177.984616,0.00010959,2]
[346789550,1735288259303,-414.863441,0.00010959,2]
[346789551,1735288259314,-414.863441,0.00010959,2]
[346789552,1735288259324,-414.863441,0.00010959,2]
[346789553,1735288259333,-414.863441,0.00010959,2]
[346789554,1735288259344,-414.863441,0.00010959,2]
[346789555,1735288259354,-414.863441,0.00010959,2]
[346789556,1735288259363,-414.863441,0.00010959,2]
[346789557,1735288259372,-414.863441,0.00010959,2]
[346789558,1735288259382,-414.863441,0.00010959,2]
[346789559,1735288259391,-414.863441,0.00010959,2]
[346789560,1735288259401,-414.863441,0.00010959,2]
[346789561,1735288259410,-414.863441,0.00010959,2]
[346789562,1735288259419,-549.427102,0.00010959,2]
[346789563,1735288259429,-549.427102,0.00010959,2]
[346789564,1735288259438,-549.427102,0.00010959,2]
[346789565,1735288259447,-549.427102,0.00010959,2]
[346789566,1735288259457,-549.427102,0.00010959,2]
[346789567,1735288259466,-549.427102,0.00010959,2]
[346789568,1735288259475,-549.427102,0.00010959,2]
[346789569,1735288259484,-549.427102,0.00010959,2]
[346789570,1735288259494,-549.427102,0.00010959,2]
[346789571,1735288259503,-549.427102,0.00010959,2]
[346789572,1735288259512,-549.427102,0.00010959,2]
[346789573,1735288259521,-549.427102,0.00010959,2]
[346789574,1735288259531,-159.777493,0.00010959,2]
[346789575,1735288259540,-673.655053,0.00010959,2]
[346789576,1735288259549,-673.655053,0.00010959,2]
[346789577,1735288259559,-673.655053,0.00010959,2]
[346789578,1735288259568,-673.655053,0.00010959,2]
[346789579,1735288259643,-673.655053,0.00010959,2]
[346789580,1735288259653,-673.655053,0.00010959,2]
[346789581,1735288259663,-673.655053,0.00010959,2]
[346789582,1735288259673,-673.655053,0.00010959,2]
[346789583,1735288259682,-673.655053,0.00010959,2]
[346789584,1735288259691,-673.655053,0.00010959,2]
[346789585,1735288259700,-673.655053,0.00010959,2]
[346789586,1735288259710,-673.655053,0.00010959,2]
[346789587,1735288259719,-151.0,0.00010959,2]
[346789588,1735288259728,-151.0,0.00010959,2]
[346789589,1735288259737,-151.0,0.00010959,2]
[346789590,1735288259747,-151.0,0.00010959,2]
[346789591,1735288259756,-151.0,0.00010959,2]
[346789592,1735288259765,-151.0,0.00010959,2]
[346789593,1735288259774,-151.0,0.00010959,2]
[346789594,1735288259783,-181.068816,0.00010959,2]
[346789595,1735288259792,-2668.959092,0.00010959,2]
[346789596,1735288259801,-2668.959092,0.00010959,2]
[346789597,1735288259810,-2668.959092,0.00010959,2]
[346789598,1735288259819,-2668.959092,0.00010959,2]
[346789599,1735288259827,-2668.959092,0.00010959,2]
[346789600,1735288259838,-2668.959092,0.00010959,2]
[346789601,1735288259847,-2668.959092,0.00010959,2]
[346789602,1735288259856,-2668.959092,0.00010959,2]
[346789603,1735288259866,-2668.959092,0.00010959,2]
[346789604,1735288259875,-2668.959092,0.00010959,2]
[346789605,1735288259884,-2668.959092,0.00010959,2]
[346789606,1735288259894,-2668.959092,0.00010959,2]
[346789607,1735288259903,-2668.959092,0.00010959,2]
[346789608,1735288259913,-2668.959092,0.00010959,2]
[346789609,1735288259922,-2668.959092,0.00010959,2]
[346789610,1735288259932,-2668.959092,0.00010959,2]
[346789611,1735288259941,-669.393648,0.00010959,2]
[346789612,1735288259950,-669.393648,0.00010959,2]
[346789613,1735288259959,-669.393648,0.00010959,2]
[346789614,1735288259969,-669.393648,0.00010959,2]
[346789615,1735288259978,-669.393648,0.00010959,2]
[346789616,1735288259988,-669.393648,0.00010959,2]
[346789617,1735288259997,-669.393648,0.00010959,2]
[346789618,1735288260006,-669.393648,0.00010959,2]
[346789619,1735288260016,-669.393648,0.00010959,2]
[346789620,1735288260025,-669.393648,0.00010959,2]
[346789621,1735288260035,-669.393648,0.00010959,2]
[346789622,1735288260045,-669.393648,0.00010959,2]
[346789623,1735288260055,-669.393648,0.00010959,2]
[346789624,1735288260064,-669.393648,0.00010959,2]
[346789625,1735288260074,-669.393648,0.00010959,2]
[346789626,1735288260083,-669.393648,0.00010959,2]
[346789627,1735288260093,-364.510774,0.00010959,2]
[346789628,1735288260102,-364.510774,0.00010959,2]
[346789629,1735288260111,-364.510774,0.00010959,2]
[346789630,1735288260121,-364.510774,0.00010959,2]
[346789631,1735288260130,-364.510774,0.00010959,2]
[346789632,1735288260139,-364.510774,0.00010959,2]
[346789633,1735288260148,-364.510774,0.00010959,2]
[346789634,1735288260158,-364.510774,0.00010959,2]
[346789635,1735288260167,-364.510774,0.00010959,2]
[346789636,1735288260176,-364.510774,0.00010959,2]
[346789637,1735288260186,-364.510774,0.00010959,2]
[346789638,1735288260195,-364.510774,0.00010959,2]
[346789639,1735288260205,-364.510774,0.00010959,2]
[346789640,1735288260214,-364.510774,0.00010959,2]
[346789641,1735288260224,-364.510774,0.00010959,2]
[346789642,1735288260234,-364.510774,0.00010959,2]
[346789643,1735288260243,-364.510774,0.00010959,2]
[346789644,1735288260252,-348.72056,0.00010959,2]
[346789645,1735288260262,-364.510774,0.00010959,2]
[346789646,1735288260274,-348.72056,0.00010959,2]
[346789647,1735288260283,-348.72056,0.00010959,2]
[346789648,1735288260292,-348.72056,0.00010959,2]
[346789649,1735288260301,-348.72056,0.00010959,2]
[346789650,1735288260311,-348.72056,0.00010959,2]
[346789651,1735288260320,-348.72056,0.00010959,2]
[346789652,1735288260329,-348.72056,0.00010959,2]
[346789653,1735288260339,-348.72056,0.00010959,2]